bitfinex/quotes_ETHUSD_20240530
["timestamp","ask_amount","ask_price","bid_price","bid_amount"]
[1717040362535,0.57105496,3789.0,3788.6,0.797]
[1717040362739,0.57105496,3788.9,3788.6,0.797]
[1717040362919,0.57105496,3789.0,3788.8,0.797]
[1717040363118,9.86006516,3790.4,3788.9,3.70359222]
[1717040363332,9.86006516,3790.4,3789.8,0.797]
[1717040363333,2.63824,3790.4,3789.8,0.797]
[1717040363534,2.63824,3790.4,3790.0,0.797]
[1717040364359,7.22182516,3790.9,3789.7,2.4057]
[1717040364360,9.85976516,3790.9,3789.7,2.4057]
[1717040364562,9.85976516,3790.9,3790.1,0.797]
[1717040365459,2.6382,3790.5,3789.7,2.4057]
[1717040365614,2.90202,3790.5,3789.9,0.797]
[1717040367425,2.90202,3790.5,3789.3,2.3599]
[1717040367624,2.90202,3790.5,3789.8,0.797]
[1717040368117,2.90202,3790.5,3790.0,0.797]
[1717040368318,2.6382,3790.5,3790.2,0.797]
[1717040368841,2.6382,3790.5,3790.4,0.797]
[1717040371164,2.6382,3790.5,3790.2,0.797]
[1717040373784,2.6382,3790.5,3789.3,6.29676222]
[1717040374086,2.6382,3790.5,3790.2,0.797]
[1717040376986,2.6382,3790.5,3790.1,0.797]
[1717040377987,2.6382,3790.5,3789.4,1.92756844]
[1717040378193,2.4075,3790.4,3789.7,0.797]
[1717040378347,2.63838,3790.3,3789.9,0.797]
[1717040378546,2.63838,3790.3,3790.0,0.20948922]
[1717040378762,2.63838,3790.3,3790.1,0.797]
[1717040379242,2.4075,3790.8,3790.1,0.797]
[1717040379451,5.0455,3790.8,3790.1,0.797]
[1717040379794,5.0455,3790.8,3789.9,0.797]
[1717040381894,5.0455,3790.8,3789.4,2.4431]
[1717040382196,6.35193252,3790.8,3789.8,0.797]
[1717040383407,5.0455,3790.8,3790.0,0.797]
[1717040385001,2.63825,3790.4,3789.3,2.3592]
[1717040385163,2.63825,3790.4,3789.7,0.797]
[1717040389105,2.63825,3790.4,3789.9,0.797]
[1717040391807,2.63825,3790.4,3790.1,0.797]
[1717040397334,2.63825,3790.4,3789.4,1.29789222]
[1717040397630,2.63825,3790.4,3789.9,0.797]
[1717040401234,2.63825,3790.4,3789.5,0.63172322]
[1717040401408,2.63825,3790.4,3789.9,0.797]
[1717040401610,2.4151,3790.3,3789.9,0.797]
[1717040402435,2.63825,3790.4,3789.9,0.797]
[1717040405416,2.63825,3790.4,3790.1,0.797]
[1717040408738,2.63825,3790.4,3789.6,3.76769222]
[1717040408941,2.63825,3790.4,3790.0,0.797]
[1717040409253,2.63825,3790.4,3789.6,3.76769222]
[1717040409475,2.63825,3790.4,3790.0,0.797]
[1717040412464,2.63825,3790.4,3789.6,3.76769222]
[1717040412630,2.63825,3790.4,3790.0,0.797]
[1717040417745,2.63825,3790.4,3789.7,0.43994154]
[1717040417946,2.63825,3790.4,3790.1,0.797]
[1717040419561,2.63797,3790.8,3790.1,0.797]
[1717040420983,9.85951516,3791.2,3790.6,0.797]
[1717040421181,2.63769,3791.2,3790.6,0.797]
[1717040421776,2.63769,3791.2,3790.2,1.29789222]
[1717040422082,2.63769,3791.2,3790.6,0.797]
[1717040422878,2.4285,3791.1,3790.3,0.37501922]
[1717040423088,2.4285,3791.1,3790.4,2.09489222]
[1717040423945,2.63723,3791.9,3790.5,3.62099222]
[1717040424157,2.63723,3791.9,3791.7,0.797]
[1717040424380,7.22182516,3792.3,3791.7,0.797]
[1717040425883,2.63713,3792.0,3791.0,2.2786]
[1717040426057,2.63713,3792.0,3791.5,0.797]
[1717040428547,2.63713,3792.0,3791.1,1.52575222]
[1717040428885,2.63713,3792.0,3791.5,0.797]
[1717040432085,2.63713,3792.0,3791.1,1.52575222]
[1717040432380,2.63713,3792.0,3791.5,0.797]
[1717040434839,2.63713,3792.0,3791.1,1.52575222]
[1717040435081,2.63713,3792.0,3791.2,0.38043522]
[1717040435383,2.63713,3792.0,3791.4,0.797]
[1717040436183,2.394,3791.9,3791.3,1.29789222]
[1717040436345,2.394,3791.9,3791.4,0.797]
[1717040437589,2.394,3791.9,3791.3,1.29789222]
[1717040438189,2.394,3791.9,3791.3,2.09489222]
[1717040439507,2.394,3791.9,3791.3,1.29789222]
[1717040439802,2.394,3791.9,3791.3,2.09489222]
[1717040441524,2.394,3791.9,3791.3,1.29789222]
[1717040441658,2.394,3791.9,3791.3,2.09489222]
[1717040445279,2.96466433,3791.9,3791.3,2.09489222]
[1717040446304,2.2782,3791.3,3789.9,2.2984]
[1717040446507,2.84886433,3791.3,3790.0,1.29789222]
[1717040446808,2.84886433,3791.3,3790.2,0.797]
[1717040446809,1.36766433,3791.2,3790.2,0.797]
[1717040447024,1.36766433,3791.2,3790.2,2.09489222]
[1717040447918,2.63778,3791.1,3790.2,2.09489222]
[1717040448126,2.63804,3790.7,3790.2,2.09489222]
[1717040448419,2.63804,3790.7,3790.2,1.29789222]
[1717040449229,2.63804,3790.7,3789.6,2.4943]
[1717040449516,2.63804,3790.7,3790.0,0.797]
[1717040449717,2.63804,3790.7,3790.0,2.09489222]
[1717040451015,2.63804,3790.7,3790.0,1.29789222]
[1717040451218,2.63804,3790.7,3789.9,0.797]
[1717040451395,2.63823,3790.5,3789.2,8.06172]
[1717040451600,3.20889433,3790.5,3789.7,0.797]
[1717040451800,3.20889433,3790.5,3789.8,1.29789222]
[1717040452182,3.20889433,3790.5,3789.9,0.797]
[1717040452626,3.20889433,3790.5,3789.8,1.29789222]
[1717040453715,3.20889433,3790.5,3789.9,0.797]
[1717040455842,2.63823,3790.5,3789.9,0.797]
[1717040456126,3.20911907,3790.5,3789.9,0.797]
[1717040456647,3.20911907,3790.5,3789.3,0.806172]
[1717040456923,3.20911907,3790.5,3789.6,0.797]
[1717040457096,3.20911907,3790.5,3789.7,1.29789222]
[1717040457097,2.63839,3790.2,3789.7,1.29789222]
[1717040463445,2.6388,3789.6,3788.2,2.63976]
[1717040463601,2.6388,3789.6,3788.6,2.3527]
[1717040463937,2.6388,3789.6,3788.7,2.09489222]
[1717040465322,2.6388,3789.6,3788.7,1.29789222]
[1717040466029,3.4358,3789.6,3788.7,1.29789222]
[1717040466353,2.63896,3789.4,3788.7,1.29789222]
[1717040466650,2.63896,3789.4,3788.6,0.797]
[1717040466651,2.63896,3789.4,3788.8,0.24645207]
[1717040466857,2.63896,3789.4,3788.5,0.3696285]
[1717040467031,3.43596,3789.4,3788.6,1.29789222]
[1717040468118,2.63896,3789.4,3788.6,1.29789222]
[1717040471617,3.216,3789.5,3788.0,2.2911]
[1717040471618,2.63915,3789.1,3788.0,2.2911]
[1717040471823,2.3901,3789.0,3788.2,0.797]
[1717040472045,2.3901,3789.0,3788.3,1.29789222]
[1717040473836,2.63915,3789.1,3788.3,1.29789222]
[1717040474167,2.63915,3789.1,3788.4,0.797]
[1717040474347,2.63915,3789.1,3788.5,1.50738144]
[1717040474973,2.3282,3789.3,3788.6,0.797]
[1717040475136,2.3282,3789.3,3788.7,1.29789222]
[1717040478235,2.63908,3789.2,3788.5,0.20948922]
[1717040478471,2.63908,3789.2,3788.6,1.29789222]
[1717040479268,3.21012258,3789.2,3788.6,1.29789222]
[1717040479676,2.63908,3789.2,3788.6,1.29789222]
[1717040480385,3.21012353,3789.2,3788.6,1.29789222]
[1717040481766,3.21012353,3789.2,3788.1,2.91026276]
[1717040481966,0.797,3789.1,3788.2,2.41200246]
[1717040482278,1.36808438,3789.1,3788.2,2.41200246]
[1717040482575,1.36808438,3789.1,3788.2,1.61500246]
[1717040482786,1.36808438,3789.1,3788.2,2.41200246]
[1717040482951,2.63922,3789.0,3788.2,1.61500246]
[1717040483150,3.21030438,3789.0,3788.2,1.29789222]
[1717040483578,2.63922,3789.0,3788.2,1.29789222]
[1717040483783,3.21034138,3789.0,3788.2,1.29789222]
[1717040486862,2.63922,3789.0,3788.2,1.29789222]
[1717040487856,2.4028,3788.9,3788.2,1.29789222]
[1717040488485,2.4028,3788.9,3788.5,0.797]
[1717040488782,2.4028,3788.9,3788.3,0.797]
[1717040488962,2.97390875,3788.9,3788.3,2.09489222]
[1717040494694,2.4028,3788.9,3788.3,2.09489222]
[1717040494856,2.97389708,3788.9,3788.3,2.09489222]
[1717040496860,2.97389708,3788.9,3788.5,0.797]
[1717040496861,0.57109708,3788.9,3788.5,0.797]
[1717040497087,0.57109708,3789.1,3788.6,1.29789222]
[1717040497798,2.2505,3789.2,3788.6,1.29789222]
[1717040499159,2.82159708,3789.2,3788.6,1.29789222]
[1717040499356,2.2505,3789.2,3788.6,1.29789222]
[1717040499559,2.82159708,3789.2,3788.6,1.29789222]
[1717040499762,0.57109708,3789.1,3788.6,1.29789222]
[1717040499969,2.2505,3789.2,3788.6,1.29789222]
[1717040500164,2.82159708,3789.2,3788.6,1.29789222]
[1717040500356,0.57109708,3789.1,3788.6,1.29789222]
[1717040500585,2.2505,3789.2,3788.6,1.29789222]
[1717040500779,2.82159708,3789.2,3788.6,1.29789222]
[1717040500981,2.2505,3789.2,3788.6,1.29789222]
[1717040501174,0.57109708,3789.1,3788.6,1.29789222]
[1717040501382,2.2505,3789.2,3788.6,1.29789222]
[1717040501567,2.82159708,3789.2,3788.6,1.29789222]
[1717040501759,2.2505,3789.0,3788.6,1.29789222]
[1717040502303,2.82158805,3789.0,3788.6,1.29789222]
[1717040503289,2.82158805,3789.0,3787.8,5.10378]
[1717040503518,2.82158805,3789.0,3788.4,0.797]
[1717040503896,0.57109918,3788.9,3788.4,0.797]
[1717040504236,2.82159918,3789.0,3788.4,0.797]
[1717040505233,3.3676741,3789.0,3788.4,0.797]
[1717040505539,0.57109918,3788.9,3788.4,0.797]
[1717040505893,2.82159918,3789.0,3788.4,0.797]
[1717040506238,0.57110018,3788.9,3788.4,0.797]
[1717040506435,2.82160018,3789.0,3788.4,0.797]
[1717040509434,0.57110018,3788.9,3788.4,0.797]
[1717040511154,0.57110018,3788.8,3788.4,0.797]
[1717040511455,0.57110018,3788.9,3788.4,0.797]
[1717040511748,0.57110018,3788.8,3788.4,0.797]
[1717040511954,0.57110018,3788.9,3788.4,0.797]
[1717040512156,2.2505,3789.0,3788.4,0.797]
[1717040512856,2.63915,3789.1,3788.4,2.09489222]
[1717040514046,2.63915,3789.1,3788.4,1.29789222]
[1717040516635,2.63915,3789.1,3788.5,0.797]
[1717040516834,2.63915,3789.1,3788.5,2.09489222]
[1717040517474,2.63915,3789.1,3788.5,1.29789222]
[1717040517656,2.63915,3789.1,3788.5,2.09489222]
[1717040520189,2.63915,3789.1,3788.5,0.797]
[1717040520408,2.63915,3789.1,3788.3,2.4771]
[1717040520549,2.63915,3789.1,3788.5,0.797]
[1717040523368,2.63915,3789.1,3788.5,3.2453]
[1717040526318,2.63915,3789.1,3788.5,2.4483]
[1717040526580,2.63915,3789.1,3788.5,3.2453]
[1717040526893,2.63915,3789.1,3788.5,4.54319222]
[1717040528914,2.63915,3789.1,3788.5,2.09489222]
[1717040535634,2.63915,3789.1,3788.6,1.29789222]
[1717040535932,2.63915,3789.1,3788.7,0.797]
[1717040536720,2.63915,3789.1,3788.7,2.09489222]
[1717040537044,2.63915,3789.1,3788.9,0.797]
[1717040538336,7.22182516,3789.3,3789.0,1.29789222]
[1717040538499,7.22182516,3789.3,3789.1,0.797]
[1717040539419,2.63887,3789.5,3789.1,0.797]
[1717040541048,2.4671,3789.7,3789.3,0.797]
[1717040542936,3.1359,3789.4,3788.2,4.97217]
[1717040543136,2.3389,3789.3,3788.3,1.29789222]
[1717040543351,2.3389,3789.3,3788.4,0.797]
[1717040543557,2.65249,3789.3,3788.5,1.29789222]
[1717040543960,5.29156,3789.3,3788.6,0.797]
[1717040544458,5.29156,3789.3,3788.5,1.29789222]
[1717040544665,5.29156,3789.3,3788.8,0.797]
[1717040546470,2.3913,3788.8,3787.4,0.41347672]
[1717040546670,0.31359,3789.3,3787.6,0.797]
[1717040546671,2.3317,3788.2,3787.6,0.797]
[1717040546840,2.63941,3788.8,3787.8,3.2062]
[1717040547049,2.63941,3788.8,3787.9,1.29789222]
[1717040547672,2.63941,3788.8,3788.1,0.797]
[1717040548734,2.63955,3788.6,3788.1,0.797]
[1717040550665,2.63955,3788.6,3787.9,1.29789222]
[1717040550879,2.63955,3788.6,3788.0,0.797]
[1717040551050,2.63955,3788.6,3788.0,2.09489222]
[1717040551246,2.28495826,3789.2,3788.5,0.797]
[1717040551458,2.28495826,3789.2,3788.2,2.4965]
[1717040551459,2.63883,3789.6,3789.1,0.797]
[1717040551628,7.22182516,3789.7,3789.5,0.797]
[1717040551832,5.1363,3790.1,3789.5,0.797]
[1717040552085,1.23581252,3790.0,3789.8,0.797]
[1717040552249,1.23581252,3790.0,3789.6,0.797]
[1717040554876,5.1363,3790.1,3789.6,0.797]
[1717040556591,5.1363,3790.1,3789.4,0.797]
[1717040560997,12.85994516,3790.6,3789.8,0.797]
[1717040561179,2.63812,3790.6,3789.8,0.797]
[1717040561681,2.63812,3790.6,3789.7,2.4929]
[1717040561843,2.63812,3790.6,3789.9,1.29789222]
[1717040563545,2.63835,3790.3,3789.3,2.4929]
[1717040563746,5.81575,3790.3,3789.4,2.09489222]
[1717040563941,5.01875,3790.3,3789.4,2.09489222]
[1717040566183,5.01875,3790.3,3789.4,1.29789222]
[1717040566386,2.63835,3790.3,3789.6,0.797]
[1717040566755,2.63835,3790.3,3789.8,0.797]
[1717040568466,5.0184,3790.8,3790.0,0.797]
[1717040569289,2.638,3790.8,3790.2,0.797]
[1717040569592,2.638,3790.8,3790.3,1.29789222]
[1717040575300,2.638,3790.8,3790.1,0.797]
[1717040575500,2.638,3790.8,3790.1,1.29789222]
[1717040577207,2.638,3790.8,3790.2,1.29789222]
[1717040578801,2.638,3790.8,3790.5,0.797]
[1717040579005,2.638,3790.8,3790.7,0.797]
[1717040579810,2.638,3790.8,3790.3,0.797]
[1717040580110,2.638,3790.8,3790.3,2.09489222]
[1717040580270,2.638,3790.8,3790.3,2.35354926]
[1717040584225,2.63767,3791.3,3790.5,0.797]
[1717040584402,2.63767,3791.3,3791.1,0.797]
[1717040585122,2.63767,3791.3,3791.0,0.797]
[1717040585290,2.63776,3791.1,3790.1,2.2935]
[1717040585616,2.63776,3791.1,3790.2,2.32424222]
[1717040586310,2.63776,3791.1,3790.4,0.797]
[1717040588131,2.63804,3790.7,3789.8,2.3754]
[1717040588307,2.63804,3790.7,3790.1,0.797]
[1717040589121,2.63774,3791.2,3790.3,0.797]
[1717040589322,2.63774,3791.2,3790.5,0.797]
[1717040590518,2.63774,3791.2,3790.3,1.29789222]
[1717040590816,2.63774,3791.2,3790.5,0.797]
[1717040591814,2.63774,3791.2,3790.5,2.09489222]
[1717040592409,2.63774,3791.2,3790.7,0.797]
[1717040592808,2.63774,3791.2,3790.9,0.797]
[1717040593324,2.63774,3791.2,3790.7,0.797]
[1717040594127,7.22182516,3791.5,3789.8,2.3046]
[1717040594309,2.2561,3790.7,3789.9,1.29789222]
[1717040594511,2.2561,3790.7,3790.0,0.797]
[1717040594711,2.2561,3790.7,3790.1,1.29789222]
[1717040595599,2.63815,3790.6,3789.8,2.3046]
[1717040595807,2.63815,3790.6,3789.8,1.29789222]
[1717040596103,2.63815,3790.6,3789.9,0.797]
[1717040598014,3.207275,3790.6,3789.8,1.29789222]
[1717040598341,2.63815,3790.6,3789.9,0.797]
[1717040598544,2.63815,3790.6,3789.8,1.29789222]
[1717040598840,2.63815,3790.6,3789.7,0.797]
[1717040599041,2.63815,3790.6,3789.7,2.09489222]
[1717040600101,2.63815,3790.6,3789.5,2.4587]
[1717040600305,3.207275,3790.6,3789.8,0.797]
[1717040601001,2.63815,3790.6,3790.0,0.797]
[1717040601199,2.63815,3790.6,3789.9,1.29789222]
[1717040601640,2.63815,3790.6,3790.1,0.797]
[1717040601802,2.63815,3790.6,3790.3,0.797]
[1717040602721,2.63815,3790.6,3790.1,2.09489222]
[1717040604849,2.63815,3790.6,3790.0,0.797]
[1717040605563,2.63815,3790.6,3789.5,5.09754]
[1717040605743,2.63815,3790.6,3790.1,0.797]
[1717040606838,5.10421,3791.1,3790.2,1.29789222]
[1717040607017,5.10421,3791.1,3790.3,0.797]
[1717040607217,5.10421,3791.1,3790.3,2.09489222]
[1717040607415,5.10421,3791.1,3790.5,0.797]
[1717040608828,2.63745,3791.6,3791.0,3.2579]
[1717040609021,2.6848678,3792.1,3791.3,0.797]
[1717040611332,2.6848678,3792.1,3790.6,2.63808]
[1717040611333,2.63765,3791.3,3790.1,2.63841]
[1717040611531,2.63765,3791.3,3790.3,0.797]
[1717040611835,3.43465,3791.3,3790.4,1.29789222]
[1717040612274,2.63765,3791.3,3790.4,1.29789222]
[1717040613142,2.63782,3791.1,3790.4,1.29789222]
[1717040614770,2.63782,3791.1,3790.0,2.2808]
[1717040614967,2.63782,3791.1,3790.1,1.71667222]
[1717040615349,2.63782,3791.1,3790.1,0.41878]
[1717040615671,2.63782,3791.1,3790.0,2.2808]
[1717040615982,2.63782,3791.1,3790.0,3.57869222]
[1717040616982,2.63782,3791.1,3790.1,1.29789222]
[1717040624878,2.6379,3790.9,3789.8,1.907]
[1717040625054,2.6379,3790.9,3789.9,1.29789222]
[1717040627983,2.6379,3790.9,3789.9,1.66935684]
[1717040628285,2.6379,3790.9,3789.9,1.29789222]
[1717040628478,2.3051,3791.5,3789.9,1.29789222]
[1717040630182,2.63788,3791.0,3789.9,1.29789222]
[1717040633179,2.2513,3790.9,3789.9,1.29789222]
[1717040633403,2.63827,3790.4,3789.4,2.3334]
[1717040633567,2.6384,3790.2,3789.5,1.29789222]
[1717040634478,2.6384,3790.2,3789.6,0.795]
[1717040634687,2.6384,3790.2,3789.6,2.09289222]
[1717040635293,2.6384,3790.2,3789.8,0.795]
[1717040637286,2.6384,3790.2,3789.6,1.29789222]
[1717040637582,2.6384,3790.2,3789.8,0.795]
[1717040639198,2.6384,3790.2,3789.0,4.95505]
[1717040639373,2.251,3789.7,3789.1,1.79339722]
[1717040639562,2.251,3789.7,3789.1,2.09289222]
[1717040640076,2.63867,3789.8,3788.5,2.63955]
[1717040640397,2.63867,3789.8,3789.0,0.795]
[1717040642803,2.63895,3789.4,3788.6,1.29789222]
[1717040643098,5.10605,3789.4,3788.7,0.795]
[1717040643400,5.10605,3789.4,3788.8,1.29789222]
[1717040643902,5.10605,3789.4,3788.9,0.795]
[1717040644081,5.10605,3789.4,3788.1,2.3767]
[1717040644408,5.10605,3789.4,3788.2,1.29789222]
[1717040648220,2.4022,3789.8,3788.5,1.909]
[1717040648446,2.63864,3789.9,3788.6,2.10937844]
[1717040648578,2.4022,3790.1,3788.9,1.909]
[1717040648774,2.4022,3790.1,3789.0,1.29789222]
[1717040649413,2.63855,3790.0,3789.0,3.93709222]
[1717040649621,2.63855,3790.0,3789.0,4.74853144]
[1717040650184,2.63855,3790.0,3788.7,2.2683]
[1717040650384,2.63855,3790.0,3788.8,1.29789222]
[1717040651596,2.63881,3789.6,3788.8,1.29789222]
[1717040651915,2.4022,3789.9,3788.9,2.2683]
[1717040652122,2.4022,3789.9,3789.0,1.65451144]
[1717040652326,2.63877,3789.7,3788.5,2.63951]
[1717040652481,2.63877,3789.7,3788.6,1.29789222]
[1717040652683,2.63877,3789.7,3788.7,2.6394]
[1717040652883,2.4022,3789.9,3788.8,1.29789222]
[1717040653127,2.4022,3789.9,3788.9,0.39372922]
[1717040653325,2.4022,3789.9,3789.0,3.74159222]
[1717040654928,2.4022,3789.9,3789.0,1.29789222]
[1717040658857,2.63866,3789.8,3789.0,1.29789222]
[1717040662952,2.63897,3789.4,3788.3,1.909]
[1717040663159,2.3774,3789.3,3788.4,1.99791322]
[1717040663849,2.63911,3789.2,3788.4,1.99791322]
[1717040666166,2.63911,3789.2,3787.9,4.3778]
[1717040666390,2.63911,3789.2,3788.1,1.29789222]
[1717040672399,2.63911,3789.2,3788.4,0.796]
[1717040674850,2.63911,3789.2,3788.1,1.29789222]
[1717040675050,2.63911,3789.2,3788.4,0.796]
[1717040677146,2.63935,3788.9,3788.4,0.796]
[1717040679922,2.63935,3788.9,3788.1,1.29789222]
[1717040680127,2.63935,3788.9,3788.5,0.796]
[1717040681245,2.63935,3788.9,3788.1,1.29789222]
[1717040681428,2.63935,3788.9,3788.4,0.796]
[1717040683541,2.63935,3788.9,3787.2,2.6404]
[1717040683542,4.92916,3788.5,3787.2,2.6404]
[1717040683847,0.57112169,3788.4,3787.6,2.09389222]
[1717040684943,0.57112169,3788.4,3787.8,0.796]
[1717040685155,0.57112169,3788.4,3787.8,1.29789222]
[1717040685505,2.63974,3788.3,3787.2,2.6404]
[1717040685709,2.63974,3788.3,3787.4,0.796]
[1717040685936,2.63974,3788.3,3787.5,1.29789222]
[1717040686145,2.63974,3788.3,3787.4,0.796]
[1717040686651,2.63974,3788.3,3787.6,0.796]
[1717040686869,3.21096941,3788.3,3787.6,0.796]
[1717040687159,0.57122941,3788.2,3787.6,0.796]
[1717040687812,2.63974,3788.3,3787.6,0.796]
[1717040688040,3.21096941,3788.3,3787.6,0.796]
[1717040688350,2.4154,3787.7,3786.5,0.796]
[1717040688523,2.4154,3787.7,3786.2,2.64111]
[1717040688524,3.4363,3787.5,3786.2,2.64111]
[1717040688720,0.57122941,3787.4,3786.6,0.796]
[1717040688949,2.3745,3787.2,3786.6,0.796]
[1717040689148,2.94572941,3787.2,3786.6,0.796]
[1717040689337,2.64055,3787.1,3786.3,0.796]
[1717040689519,3.21177941,3787.1,3786.3,0.796]
[1717040689935,3.21177941,3787.1,3786.5,0.796]
[1717040690329,3.21177941,3787.1,3786.3,1.29789222]
[1717040690739,2.64055,3787.1,3786.3,1.29789222]
[1717040690937,3.21194649,3787.1,3786.3,1.29789222]
[1717040691360,2.64055,3787.1,3786.3,1.29789222]
[1717040691869,2.786,3788.6,3785.7,2.64148]
[1717040691870,2.2788,3788.4,3786.6,1.29789222]
[1717040692166,2.2788,3788.4,3786.7,1.29789222]
[1717040692467,2.85017859,3788.4,3786.7,3.20789222]
[1717040692701,2.2788,3788.4,3786.7,3.20789222]
[1717040693203,2.63988,3788.1,3786.8,0.56287922]
[1717040693401,2.63988,3788.1,3786.9,1.29789222]
[1717040694035,2.63988,3788.1,3786.9,3.93852222]
[1717040695538,2.63988,3788.1,3787.0,0.05280228]
[1717040695787,2.63988,3788.1,3787.1,1.29789222]
[1717040695989,2.63988,3788.1,3787.2,0.45193194]
[1717040696147,2.63988,3788.1,3787.3,1.3506945]
[1717040697783,0.57137859,3788.3,3787.3,6.37522222]
[1717040697990,7.22182516,3788.6,3787.3,6.37522222]
[1717040699287,0.57118343,3788.5,3787.3,6.37522222]
[1717040699483,0.57118343,3788.5,3787.4,0.67743547]
[1717040699792,0.57118343,3788.5,3787.5,1.29789222]
[1717040700084,2.63967,3788.4,3787.5,1.29789222]
[1717040701055,3.21089723,3788.4,3787.5,1.29789222]
[1717040701388,2.63967,3788.4,3787.5,1.29789222]
[1717040701689,2.63967,3788.4,3787.5,2.04307123]
[1717040703895,0.57121542,3788.8,3787.6,2.64017]
[1717040704100,0.57121542,3788.9,3787.8,1.91]
[1717040704391,0.57121542,3788.9,3787.9,1.29789222]
[1717040704549,0.57121542,3788.9,3788.0,0.32078922]
[1717040704752,0.57121542,3788.9,3788.1,1.29789222]
[1717040705414,4.63928,3789.0,3788.1,1.29789222]
[1717040705981,0.57111739,3788.9,3788.1,1.29789222]
[1717040706503,4.63928,3789.0,3788.1,1.29789222]
[1717040706707,4.63928,3789.0,3788.1,1.91476436]
[1717040707625,2.0,3789.0,3788.2,4.91912]
[1717040707951,2.0,3789.0,3788.7,1.91]
[1717040708241,2.0,3789.0,3788.8,3.93722222]
[1717040708381,2.0,3789.0,3788.9,2.3705]
[1717040708580,2.0,3789.0,3788.9,4.49016444]
[1717040709721,2.0,3789.0,3788.9,0.82177222]
[1717040710023,2.0,3789.0,3788.4,2.3567]
[1717040710235,2.0,3789.0,3788.5,1.29789222]
[1717040714743,2.0,3789.0,3788.6,2.63949]
[1717040715033,2.0,3789.0,3788.9,1.91]
[1717040715193,2.0,3789.0,3788.9,3.20789222]
[1717040715398,2.0,3789.0,3788.9,3.79263044]
[1717040717253,2.0,3789.0,3788.9,6.05393044]
[1717040737772,2.0,3789.0,3788.9,3.79263044]
[1717040739762,2.570961,3789.5,3788.9,3.79263044]
[1717040739963,2.570961,3789.5,3789.0,1.29789222]
[1717040740160,2.570961,3789.5,3789.1,0.40557438]
[1717040740363,2.570961,3789.5,3789.4,0.795]
[1717040741534,2.57096676,3789.5,3789.4,0.795]
[1717040742881,2.57096676,3789.5,3789.4,2.09289222]
[1717040743093,2.0,3789.5,3789.4,2.09289222]
[1717040743252,2.0,3789.5,3789.4,2.57142888]
[1717040749185,2.0,3789.5,3789.4,2.09289222]
[1717040752816,2.0,3789.5,3789.4,7.18963222]
[1717040757423,2.0,3789.5,3789.4,4.73183222]
[1717040762129,1.2669698,3789.5,3789.4,7.03243222]
[1717040762348,0.57088595,3790.6,3790.5,2.63817]
[1717040762496,2.63716,3792.0,3790.5,2.63817]
[1717040762497,0.57088595,3791.3,3790.5,4.73106222]
[1717040762703,2.3143,3791.3,3790.6,1.77099844]
[1717040763044,2.3143,3791.3,3791.1,0.795]
[1717040763343,2.3143,3791.3,3790.6,1.29789222]
[1717040763556,2.3143,3791.3,3791.0,0.795]
[1717040764517,2.63768,3791.2,3789.5,2.4171]
[1717040764718,2.2841,3791.1,3790.3,0.795]
[1717040764928,2.85498595,3791.1,3790.3,2.09289222]
[1717040765549,2.63787,3791.0,3790.3,2.09289222]
[1717040765732,3.20875595,3791.0,3790.3,2.09289222]
[1717040766045,0.54928559,3790.9,3790.3,2.09289222]
[1717040766346,1.12017154,3790.9,3790.3,1.29789222]
[1717040766548,1.12017154,3790.9,3790.4,1.29789222]
[1717040770528,2.2903,3790.8,3790.4,1.29789222]
[1717040771375,2.63751,3791.5,3790.5,2.4764]
[1717040771533,2.63751,3791.5,3790.6,1.67532144]
[1717040773316,2.63751,3791.5,3790.6,1.29789222]
[1717040775061,2.2607,3791.4,3790.6,1.29789222]
[1717040779862,2.3111,3791.7,3789.7,2.63868]
[1717040780066,2.3111,3791.6,3789.8,1.29789222]
[1717040780367,2.63791,3790.9,3789.8,1.29789222]
[1717040780551,2.3111,3790.8,3789.8,1.29789222]
[1717040780755,2.63813,3790.6,3789.8,1.29789222]
[1717040782869,2.63832,3790.3,3789.2,2.63902]
[1717040783088,2.63832,3790.3,3789.4,2.63891]
[1717040783382,2.3111,3790.5,3789.5,1.29789222]
[1717040784773,2.63826,3790.4,3789.5,1.29789222]
[1717040787180,2.2733,3789.9,3789.1,2.3691]
[1717040787347,0.491183,3789.8,3789.2,1.29789222]
[1717040788480,2.2733,3789.9,3789.2,1.29789222]
[1717040789781,2.63853,3790.0,3789.2,1.29789222]
[1717040803004,2.63853,3790.0,3789.3,2.3514]
[1717040803300,10.22182516,3790.6,3789.5,2.3514]
[1717040803301,2.63822,3790.5,3789.5,2.3514]
[1717040803505,2.63822,3790.5,3789.6,1.35066001]
[1717040803664,2.63822,3790.5,3789.7,0.370206]
[1717040803863,2.63822,3790.5,3789.8,1.29789222]
[1717040804066,2.63822,3790.5,3789.9,2.4427]
[1717040804264,2.63822,3790.5,3790.0,1.29789222]
[1717040804481,2.63822,3790.5,3790.0,2.09289222]
[1717040805004,2.63822,3790.5,3789.7,0.370206]
[1717040805212,2.4308,3790.4,3789.8,1.29789222]
[1717040807525,3.00169305,3790.4,3789.8,1.29789222]
[1717040809804,2.63833,3790.3,3789.8,1.29789222]
[1717040810010,3.20922305,3790.3,3789.8,1.29789222]
[1717040815708,3.20922305,3790.3,3789.4,2.4427]
[1717040815925,0.57090643,3790.2,3789.5,1.29789222]
[1717040816130,3.20923643,3790.3,3789.5,1.29789222]
[1717040818631,3.20923643,3790.3,3789.5,1.67195144]
[1717040822033,2.63833,3790.3,3789.5,1.67195144]
[1717040822342,3.20923019,3790.3,3789.5,1.67195144]
[1717040822504,2.39778081,3790.2,3789.5,1.67195144]
[1717040822711,2.968681,3790.2,3789.5,1.67195144]
[1717040822918,2.39778081,3790.1,3789.5,1.67195144]